bitfinex/quotes_BTCUSD_20251009
["timestamp","ask_amount","ask_price","bid_price","bid_amount"]
[1760029838453,0.95612591,120220.0,120210.0,0.08468856]
[1760029839211,0.95612591,120220.0,120210.0,0.14477856]
[1760029839395,0.95712591,120220.0,120210.0,0.14477856]
[1760029839594,0.95712591,120220.0,120210.0,0.19317856]
[1760029840256,0.16736167,120220.0,120210.0,0.19317856]
[1760029841862,0.16736167,120220.0,120210.0,0.28582856]
[1760029842065,0.16736167,120220.0,120210.0,0.19317856]
[1760029842957,0.001,120220.0,120210.0,0.45220406]
[1760029843121,0.16736167,120220.0,120210.0,0.28582856]
[1760029843743,0.16736167,120220.0,120210.0,0.19317856]
[1760029844086,0.16636167,120220.0,120210.0,0.19317856]
[1760029844301,0.16636167,120220.0,120210.0,0.08468856]
[1760029844482,0.16636167,120220.0,120210.0,0.19317856]
[1760029844687,0.06636167,120220.0,120210.0,0.19317856]
[1760029846137,0.06636167,120220.0,120210.0,0.08468856]
[1760029846603,0.06636167,120220.0,120210.0,0.14524856]
[1760029846821,0.70936591,120220.0,120210.0,0.08468856]
[1760029847495,0.95596591,120220.0,120210.0,0.08468856]
[1760029848375,0.95596591,120220.0,120210.0,0.19141856]
[1760029849223,0.16636167,120220.0,120210.0,0.19141856]
[1760029849648,0.16636167,120220.0,120210.0,0.28365856]
[1760029850088,0.16636167,120220.0,120210.0,0.69659406]
[1760029850305,0.16636167,120220.0,120210.0,0.45003406]
[1760029850695,0.16636167,120220.0,120210.0,0.69659406]
[1760029850934,0.17895516,120240.0,120210.0,0.45003406]
[1760029851152,0.16634783,120230.0,120220.0,0.13841]
[1760029851412,0.16634783,120230.0,120220.0,0.28209206]
[1760029851654,0.17895516,120240.0,120220.0,0.44845373]
[1760029851853,0.16634783,120230.0,120220.0,0.61185167]
[1760029852061,0.16634783,120230.0,120220.0,0.69497373]
[1760029852273,0.16634783,120230.0,120220.0,0.28209206]
[1760029852486,0.16634783,120230.0,120220.0,0.52861206]
[1760029854231,0.70935207,120230.0,120220.0,0.08312206]
[1760029854880,0.70935207,120230.0,120220.0,0.18985206]
[1760029855763,0.42536916,120240.0,120220.0,0.69489373]
[1760029855977,0.16633399,120240.0,120230.0,0.38787989]
[1760029856193,0.16633399,120240.0,120230.0,0.28209206]
[1760029856410,0.1791332,120240.0,120230.0,0.19037414]
[1760029856644,0.16633399,120240.0,120230.0,0.52905414]
[1760029857511,0.16633399,120240.0,120230.0,0.43681414]
[1760029858353,0.16633399,120240.0,120230.0,0.44896197]
[1760029858563,0.16633399,120240.0,120230.0,0.69536197]
[1760029858752,0.16633399,120240.0,120230.0,0.28261414]
[1760029858980,0.16633399,120240.0,120230.0,0.52901414]
[1760029859822,0.16633399,120240.0,120230.0,0.52897414]
[1760029860041,0.16633399,120240.0,120230.0,0.43673414]
[1760029860513,0.16633399,120240.0,120230.0,0.69532197]
[1760029860931,0.16769959,120260.0,120240.0,0.16633399]
[1760029861151,0.41417123,120260.0,120250.0,0.18985206]
[1760029861372,0.16785123,120260.0,120250.0,0.28209206]
[1760029861812,0.71085547,120260.0,120250.0,0.18985206]
[1760029862026,0.71085547,120260.0,120250.0,0.08312206]
[1760029862237,0.71185547,120260.0,120250.0,0.08312206]
[1760029862889,0.72547245,120260.0,120250.0,0.08312206]
[1760029863111,0.16633399,120240.0,120230.0,0.00052208]
[1760029863318,0.70933823,120240.0,120230.0,0.08364414]
[1760029863530,0.70933823,120240.0,120230.0,0.14523414]
[1760029863768,0.16633399,120240.0,120230.0,0.19242414]
[1760029864191,0.16633399,120240.0,120230.0,0.43870414]
[1760029864629,0.16637399,120240.0,120230.0,0.43866414]
[1760029864834,0.16637399,120240.0,120230.0,0.70360197]
[1760029865044,0.16637399,120240.0,120230.0,0.53725414]
[1760029865683,4e-05,120240.0,120230.0,0.45736197]
[1760029865901,4e-05,120240.0,120230.0,0.70360197]
[1760029866107,0.16637399,120240.0,120230.0,0.45736197]
[1760029866314,0.16637399,120240.0,120230.0,0.70356197]
[1760029866793,0.16637399,120240.0,120230.0,0.29101414]
[1760029867016,0.72844405,120240.0,120230.0,0.08364414]
[1760029867220,0.70937823,120240.0,120230.0,0.08364414]
[1760029867421,1.32573013,120240.0,120230.0,0.00052208]
[1760029868291,1.32673013,120240.0,120230.0,0.00052208]
[1760029868505,1.08053013,120240.0,120230.0,0.00052208]
[1760029868692,1.32669013,120240.0,120230.0,0.00052208]
[1760029868933,1.32769013,120240.0,120230.0,0.00052208]
[1760029869115,1.32769013,120240.0,120230.0,1e-08]
[1760029869315,1.32669013,120240.0,120230.0,1e-08]
[1760029869549,1.08153013,120240.0,120230.0,1e-08]
[1760029869756,1.32669013,120240.0,120230.0,1e-08]
[1760029870179,1.08053013,120240.0,120230.0,1e-08]
[1760029870451,1.41413013,120240.0,120230.0,1e-08]
[1760029870932,1.41313013,120240.0,120230.0,1e-08]
[1760029870951,1.16701013,120240.0,120230.0,1e-08]
[1760029871139,1.41417013,120240.0,120230.0,1e-08]
[1760029871416,1.41317013,120240.0,120230.0,1e-08]
[1760029871631,1.19037411,120240.0,120230.0,1e-08]
[1760029871844,1.43749411,120240.0,120230.0,1e-08]
[1760029873441,1.52061617,120240.0,120230.0,1e-08]
[1760029873677,2.06362041,120240.0,120230.0,1e-08]
[1760029873907,2.0886204,120240.0,120230.0,1e-08]
[1760029876214,1.80509616,120240.0,120230.0,1e-08]
[1760029876466,1.89157616,120240.0,120230.0,1e-08]
[1760029877335,2.4345404,120240.0,120230.0,1e-08]
[1760029877535,1.89153616,120240.0,120230.0,1e-08]
[1760029877745,1.45905616,120240.0,120230.0,1e-08]
[1760029877951,1.89153616,120240.0,120230.0,1e-08]
[1760029878367,1.18801617,120240.0,120230.0,1e-08]
[1760029878548,1.89153616,120240.0,120230.0,1e-08]
[1760029878805,1.69237828,120240.0,120230.0,1e-08]
[1760029879011,1.44633828,120240.0,120230.0,1e-08]
[1760029879219,1.1318283,120240.0,120230.0,1e-08]
[1760029879425,1.8103083,120240.0,120230.0,1e-08]
[1760029880783,1.8404602,120240.0,120230.0,1e-08]
[1760029881270,1.07885814,120240.0,120230.0,1e-08]
[1760029881452,0.79781823,120240.0,120230.0,1e-08]
[1760029881687,1.04381823,120240.0,120230.0,1e-08]
[1760029881889,1.38381823,120240.0,120230.0,1e-08]
[1760029883989,1.43046194,120240.0,120230.0,1e-08]
[1760029884199,1.05133823,120240.0,120230.0,1e-08]
[1760029884382,1.13781823,120240.0,120230.0,1e-08]
[1760029884633,1.38373823,120240.0,120230.0,1e-08]
[1760029885266,0.59481399,120240.0,120230.0,1e-08]
[1760029885479,1.38373823,120240.0,120230.0,1e-08]
[1760029885695,0.60423101,120240.0,120230.0,1e-08]
[1760029885903,0.85015101,120240.0,120230.0,1e-08]
[1760029886330,0.41425399,120240.0,120230.0,0.06159001]
[1760029886466,0.16833399,120240.0,120230.0,0.19190207]
[1760029886871,0.41421399,120240.0,120230.0,0.19190207]
[1760029887502,0.16833399,120240.0,120230.0,0.19190207]
[1760029887747,0.002,120240.0,120230.0,0.4568399]
[1760029888168,0.002,120240.0,120230.0,0.46882627]
[1760029888942,0.001,120240.0,120230.0,0.4568399]
[1760029889140,0.16632051,120250.0,120230.0,0.7026799]
[1760029889482,0.16632051,120250.0,120240.0,0.22890206]
[1760029889884,0.16632051,120250.0,120240.0,0.29049206]
[1760029890248,0.16732051,120250.0,120240.0,0.29049206]
[1760029890838,0.16832051,120250.0,120240.0,0.29049206]
[1760029891036,0.16732051,120250.0,120240.0,0.29049206]
[1760029891886,0.16832051,120250.0,120240.0,0.29049206]
[1760029894317,0.60421753,120250.0,120240.0,0.08312206]
[1760029894516,0.84989753,120250.0,120240.0,0.08312206]
[1760029894895,0.60421753,120250.0,120240.0,0.08312206]
[1760029895099,0.16633399,120240.0,120230.0,1e-08]
[1760029895249,0.60223101,120240.0,120230.0,0.08312207]
[1760029895450,0.41201399,120240.0,120230.0,0.14718207]
[1760029895684,0.84791101,120240.0,120230.0,0.14718207]
[1760029895835,0.84791101,120240.0,120230.0,0.19617207]
[1760029895836,0.41197399,120240.0,120230.0,0.19617207]
[1760029896047,0.16633399,120240.0,120230.0,0.19617207]
[1760029896254,0.16733399,120240.0,120230.0,0.28938207]
[1760029897114,0.16833399,120240.0,120230.0,0.28938207]
[1760029897381,0.60423101,120240.0,120230.0,0.19617207]
[1760029897567,0.60423101,120240.0,120230.0,0.08312207]
[1760029897777,0.60423101,120240.0,120230.0,0.19617207]
[1760029897983,0.16833399,120240.0,120230.0,0.19617207]
[1760029898156,0.16833399,120240.0,120230.0,0.28938207]
[1760029898362,0.002,120240.0,120230.0,0.4557299]
[1760029898576,0.002,120240.0,120230.0,0.7013299]
[1760029898828,0.00154487,120260.0,120250.0,0.16632016]
[1760029899035,0.00154487,120260.0,120250.0,1.13719924]
[1760029899181,0.00154487,120260.0,120250.0,0.78778222]
[1760029899381,0.00154487,120260.0,120250.0,0.51933572]
[1760029899583,0.00154487,120260.0,120250.0,0.76493572]
[1760029899804,0.1678512,120260.0,120250.0,0.35301556]
[1760029900004,0.60374822,120260.0,120250.0,0.50540556]
[1760029900211,0.00154487,120260.0,120250.0,0.76493572]
[1760029900411,0.1678512,120260.0,120250.0,0.76493572]
[1760029900922,0.1688512,120260.0,120250.0,0.50536556]
[1760029901132,0.1688512,120260.0,120250.0,0.19617206]
[1760029901328,0.1678512,120260.0,120250.0,0.44173206]
[1760029902114,0.1678512,120260.0,120250.0,0.53494206]
[1760029902304,0.1678512,120260.0,120250.0,0.70126222]
[1760029902695,0.1678512,120260.0,120250.0,0.19617206]
[1760029902900,0.1678512,120260.0,120250.0,0.44169206]
[1760029903297,0.1678512,120260.0,120250.0,0.19617206]
[1760029903557,0.1678512,120260.0,120250.0,0.50455851]
[1760029903802,0.1678512,120260.0,120250.0,0.59776851]
[1760029903969,0.1678512,120260.0,120250.0,0.50455851]
[1760029904178,0.1678512,120260.0,120250.0,0.44169206]
[1760029904724,0.1678912,120260.0,120250.0,0.70401222]
[1760029904984,0.00158487,120260.0,120250.0,0.70397222]
[1760029905183,0.1678912,120260.0,120250.0,0.70397222]
[1760029905439,0.00158487,120260.0,120250.0,0.70397222]
[1760029906324,0.00158487,120260.0,120250.0,0.76650192]
[1760029906881,0.60378822,120260.0,120250.0,0.50414176]
[1760029907376,0.1678912,120260.0,120250.0,0.60010176]
[1760029907627,0.1678912,120260.0,120250.0,0.67042192]
[1760029907868,0.00158487,120260.0,120250.0,0.76642192]
[1760029908351,0.1678912,120260.0,120250.0,0.76642192]
[1760029908584,0.1678912,120260.0,120250.0,0.60010176]
[1760029908849,0.00158487,120260.0,120250.0,0.35470176]
[1760029909099,0.1678912,120260.0,120250.0,0.76642192]
[1760029909355,0.00158487,120260.0,120250.0,0.35470176]
[1760029909609,0.1678912,120260.0,120250.0,0.76642192]
[1760029909862,0.00158487,120260.0,120250.0,0.76638192]
[1760029910087,0.00158487,120260.0,120250.0,0.85282192]
[1760029910303,0.00158487,120260.0,120250.0,0.60746192]
[1760029910513,0.00158487,120260.0,120250.0,1.62871894]
[1760029910926,0.00158487,120260.0,120250.0,1.19282192]
[1760029911166,0.00158487,120260.0,120250.0,1.10638192]
[1760029911370,0.00158487,120260.0,120250.0,1.19278192]
[1760029912779,0.00158487,120260.0,120250.0,0.94746192]
[1760029912980,0.00158487,120260.0,120250.0,1.19278192]
[1760029913225,0.00158487,120260.0,120250.0,1.20432545]
[1760029913402,0.00158487,120260.0,120250.0,1.39490247]
[1760029913630,0.00158487,120260.0,120250.0,1.64018247]
[1760029916740,0.23795129,120290.0,120270.0,0.16627954]
[1760029916938,0.23795129,120290.0,120280.0,0.43628206]
[1760029917528,0.16629109,120300.0,120290.0,0.16626485]
[1760029917755,0.00019172,120300.0,120290.0,0.69850691]
[1760029917974,0.16644275,120300.0,120290.0,0.69850691]
[1760029918626,0.00019172,120300.0,120290.0,0.69850691]
[1760029919218,8.157e-05,120300.0,120290.0,0.28704206]
[1760029919421,0.1663326,120300.0,120290.0,0.5953406]
[1760029919783,0.1663326,120300.0,120290.0,0.76160545]
[1760029920219,0.1663326,120300.0,120290.0,0.19104206]
[1760029920421,0.1663326,120300.0,120290.0,0.32824206]
[1760029920422,0.60222962,120300.0,120290.0,0.32824206]
[1760029921028,0.94222962,120300.0,120290.0,0.08312206]
[1760029921229,0.1662925,120270.0,120260.0,0.21385633]
[1760029921463,0.1662925,120270.0,120260.0,0.68834839]
[1760029922287,0.1662925,120270.0,120260.0,0.28704206]
[1760029922491,0.16733633,120270.0,120260.0,0.28704206]
[1760029922628,0.16733633,120270.0,120260.0,0.43612206]
[1760029924104,0.16733633,120270.0,120260.0,0.52682206]
[1760029924521,0.16733633,120270.0,120260.0,0.19104206]
[1760029924727,0.60323335,120270.0,120260.0,0.08312206]
[1760029924934,0.60323335,120270.0,120260.0,0.14369206]
[1760029925111,0.60323335,120270.0,120260.0,0.43634206]
[1760029925524,0.16733633,120270.0,120260.0,0.43634206]
[1760029925779,0.60323335,120270.0,120260.0,0.08312206]
[1760029926227,0.61497906,120270.0,120260.0,0.08312206]
[1760029928541,0.85997906,120270.0,120260.0,0.08312206]
[1760029928953,0.17908204,120270.0,120260.0,0.08312206]
[1760029929184,0.17908204,120270.0,120260.0,0.14369206]
[1760029929185,0.86097906,120270.0,120260.0,0.14369206]
[1760029929395,0.61597906,120270.0,120260.0,0.14369206]
[1760029929607,0.16833633,120270.0,120260.0,0.46493902]
[1760029929821,0.00204383,120270.0,120260.0,0.69326839]
[1760029930023,0.00104383,120270.0,120260.0,1.12916541]
[1760029930238,8.157e-05,120300.0,120290.0,0.16626485]
[1760029930444,0.1663326,120300.0,120290.0,0.69322691]
[1760029930658,0.16789769,120300.0,120290.0,0.69322691]
[1760029931095,0.16789769,120300.0,120290.0,0.52696206]
[1760029931514,0.16789769,120300.0,120290.0,0.69322691]
[1760029931711,0.16789769,120300.0,120290.0,0.52696206]
[1760029932120,0.16789769,120300.0,120290.0,0.69322691]
[1760029932666,0.16789769,120300.0,120290.0,0.28200206]
[1760029932869,0.16789769,120300.0,120290.0,0.52692206]
[1760029933077,0.16789769,120300.0,120290.0,0.69318691]
[1760029933519,0.16789769,120300.0,120290.0,0.52692206]
[1760029933978,0.00164666,120300.0,120290.0,0.44826691]
[1760029934863,0.00164666,120300.0,120290.0,0.69314691]
[1760029935322,0.1662377,120310.0,120290.0,0.69314691]
[1760029935555,0.1662377,120310.0,120300.0,0.22143206]
[1760029936014,0.1662377,120310.0,120300.0,0.28200206]
[1760029938217,0.16623722,120310.0,120300.0,0.28200206]
[1760029938449,0.42311022,120330.0,120310.0,0.16623722]
[1760029938673,0.16629711,120330.0,120320.0,0.45758934]
[1760029938891,0.16629711,120330.0,120320.0,0.28200206]
[1760029939340,0.16629711,120330.0,120320.0,0.19130206]
[1760029939750,0.16629711,120330.0,120320.0,0.28200206]
[1760029939983,0.001,120330.0,120320.0,0.44822546]
[1760029940216,0.001,120330.0,120320.0,0.69298546]
[1760029940446,0.002,120330.0,120320.0,0.44822546]
[1760029940636,0.002,120330.0,120320.0,0.69298546]
[1760029940889,0.002,120330.0,120320.0,0.44822546]
[1760029941109,0.001,120330.0,120320.0,0.69298546]
[1760029941562,0.17455055,120340.0,120320.0,0.69298546]
[1760029941778,0.17505618,120340.0,120330.0,0.04761]
[1760029942028,0.17505618,120340.0,120330.0,0.19130206]
[1760029942213,0.17505618,120340.0,120330.0,0.37545206]
[1760029942691,0.17505618,120340.0,120330.0,0.19130206]
[1760029942944,0.17505618,120340.0,120330.0,0.43602206]
[1760029943168,0.00050563,120340.0,120330.0,0.35751165]
[1760029943394,0.1667014,120340.0,120330.0,0.28200206]
[1760029943835,0.1667014,120340.0,120330.0,0.52668206]
[1760029944290,0.1667014,120340.0,120330.0,0.19130206]
[1760029944507,0.1667014,120340.0,120330.0,0.52668206]
[1760029944755,0.1667014,120340.0,120330.0,0.28200206]
[1760029944972,0.1667014,120340.0,120330.0,0.52664206]
[1760029945196,0.1667014,120340.0,120330.0,0.75555167]
[1760029945421,0.1667014,120340.0,120330.0,0.58934208]
[1760029945873,0.1667014,120340.0,120330.0,0.75555167]
[1760029946526,0.1667014,120340.0,120330.0,0.58934208]
[1760029947003,0.1667014,120340.0,120330.0,0.34470208]
[1760029947204,0.1667014,120340.0,120330.0,0.32772206]
[1760029947420,0.16878723,120340.0,120330.0,0.32772206]
[1760029947634,0.16878723,120340.0,120330.0,0.38829206]
[1760029947853,0.16878723,120340.0,120330.0,0.08312206]
[1760029948080,0.71044322,120340.0,120330.0,0.08312206]
[1760029948537,0.16878723,120340.0,120330.0,0.3450386]
[1760029949466,0.16878723,120340.0,120330.0,0.2543386]
[1760029949676,0.16978723,120340.0,120330.0,0.3450386]
[1760029950306,0.16978723,120340.0,120330.0,0.2543386]
[1760029950719,0.16978723,120340.0,120330.0,0.25413867]
[1760029950983,0.00359146,120340.0,120330.0,0.51104826]
[1760029951200,0.00359146,120340.0,120330.0,0.75556826]
[1760029951664,0.00359146,120340.0,120330.0,0.51104826]
[1760029951912,0.0002,120370.0,120360.0,0.50616816]
[1760029952138,0.166506,120370.0,120360.0,0.43578206]
[1760029953008,0.70816199,120370.0,120360.0,0.08312206]
[1760029953214,0.17411345,120370.0,120360.0,0.08312206]
[1760029953427,0.41859345,120370.0,120360.0,0.08312206]
[1760029953642,0.17411345,120370.0,120360.0,0.08312206]
[1760029953853,0.17411345,120370.0,120330.0,0.11064654]
[1760029953854,0.16619577,120340.0,120330.0,0.11064654]
[1760029954065,0.16619577,120340.0,120330.0,0.4454586]
[1760029954678,0.16619577,120340.0,120330.0,0.2548986]
[1760029954900,0.16619577,120340.0,120330.0,0.4382086]
[1760029955114,0.16619577,120340.0,120330.0,0.51812819]
[1760029955318,0.16619577,120340.0,120330.0,0.5963586]
[1760029955697,0.16619577,120340.0,120330.0,0.76256819]
[1760029956838,0.16619577,120340.0,120330.0,0.51812819]
[1760029956996,0.16619577,120340.0,120330.0,0.4382086]
[1760029957205,0.16619577,120340.0,120330.0,0.4993386]
[1760029958191,0.16618259,120350.0,120330.0,0.42110819]
[1760029958393,0.16618259,120350.0,120340.0,0.08312206]
[1760029958596,0.16670391,120350.0,120340.0,0.08312206]
[1760029959227,0.17433361,120350.0,120340.0,0.08312206]
[1760029959804,0.00815102,120350.0,120340.0,0.14425206]
[1760029960004,0.00815102,120350.0,120340.0,0.45304783]
[1760029960204,0.00052132,120350.0,120340.0,0.69740783]
[1760029960636,0.16670328,120350.0,120340.0,0.45304783]
[1760029960837,0.00052132,120350.0,120340.0,0.69736783]
[1760029961112,0.00052132,120350.0,120340.0,1.57902382]
[1760029961299,0.00052132,120350.0,120340.0,1.03736783]
[1760029961711,0.00052132,120350.0,120340.0,1.57902382]
[1760029962039,0.00052132,120350.0,120340.0,1.69557572]
[1760029962655,0.00052132,120350.0,120340.0,0.92095134]
[1760029962844,0.00052132,120350.0,120340.0,1.70692733]
[1760029963261,0.00052132,120350.0,120340.0,1.37620733]
[1760029963457,0.00052132,120350.0,120340.0,1.70688733]
[1760029965107,0.00052132,120350.0,120340.0,1.37620733]
[1760029965271,0.00052132,120350.0,120340.0,1.70684733]
[1760029967521,0.16670328,120350.0,120340.0,0.87105206]
[1760029967777,0.16670328,120350.0,120340.0,1.03724783]
[1760029968312,0.00052132,120350.0,120340.0,1.03724783]
[1760029968519,0.16670328,120350.0,120340.0,1.03724783]
[1760029968827,0.1661685,120360.0,120340.0,1.03724783]
[1760029969030,0.00763011,120360.0,120350.0,0.63490402]
[1760029969226,0.17481379,120370.0,120350.0,0.69590402]
[1760029969475,0.18244435,120370.0,120360.0,0.30756816]
[1760029969657,0.18244435,120370.0,120360.0,0.39069022]
[1760029969866,0.18244435,120370.0,120360.0,0.45169022]
[1760029970067,0.18244435,120370.0,120360.0,0.43776206]
[1760029970274,0.18244435,120370.0,120360.0,0.08312206]
[1760029970430,0.73936048,120370.0,120360.0,0.14412206]
[1760029970634,0.73936048,120370.0,120360.0,0.45169022]
[1760029970635,0.00798221,120370.0,120360.0,0.45169022]
[1760029971030,0.00035165,120370.0,120360.0,1.23750621]
[1760029971258,0.00035165,120370.0,120360.0,0.45169022]
[1760029971473,0.00035165,120370.0,120360.0,0.69581022]
[1760029972122,0.166506,120370.0,120360.0,0.69581022]
[1760029973442,0.00035165,120370.0,120360.0,0.69581022]
[1760029974187,0.00035165,120370.0,120360.0,0.19360206]
[1760029974390,0.166506,120370.0,120360.0,0.35977022]
[1760029974601,0.166506,120370.0,120360.0,0.60385022]
[1760029975003,0.166506,120370.0,120360.0,0.43768206]
[1760029975208,0.166506,120370.0,120360.0,0.60385022]
[1760029975838,0.00035165,120370.0,120360.0,0.45169022]
[1760029976048,0.00035165,120370.0,120360.0,0.69577022]
[1760029976468,0.166506,120370.0,120360.0,0.69577022]
[1760029976892,0.166506,120370.0,120360.0,0.52960206]
[1760029977138,0.166506,120370.0,120360.0,0.69577022]
[1760029977980,0.166506,120370.0,120360.0,0.32716206]
[1760029978194,0.166506,120370.0,120360.0,0.08312206]
[1760029978408,0.166506,120370.0,120360.0,0.38816206]
[1760029978671,0.00035165,120370.0,120360.0,0.60377022]
[1760029978882,0.00035165,120370.0,120360.0,0.69569022]
[1760029979343,0.166506,120370.0,120360.0,0.69569022]
[1760029980250,0.00139409,120370.0,120360.0,0.99334621]
[1760029980470,0.00139409,120370.0,120360.0,1.23734621]
[1760029981183,0.00139409,120370.0,120360.0,0.69569022]
[1760029981407,0.00139409,120370.0,120360.0,0.45169022]
[1760029981636,0.00139409,120370.0,120360.0,0.69569022]
[1760029981857,0.00139409,120370.0,120360.0,0.45169022]
[1760029982078,0.00139409,120370.0,120360.0,0.99334621]
[1760029982305,0.00139409,120370.0,120360.0,1.23730621]
[1760029982563,0.00139409,120370.0,120360.0,0.69565022]
[1760029982790,0.00139409,120370.0,120360.0,1.23730621]
[1760029983488,0.00139409,120370.0,120360.0,1.57730621]
[1760029983705,0.00139409,120370.0,120360.0,1.60745811]
[1760029984146,0.00139409,120370.0,120360.0,1.61826951]
[1760029984590,0.00139409,120370.0,120360.0,1.37430951]
[1760029985076,0.00139409,120370.0,120360.0,1.61922951]
[1760029985489,0.00139409,120370.0,120360.0,1.37530951]
[1760029985930,0.00139409,120370.0,120360.0,1.61922951]
[1760029986176,0.00139409,120370.0,120360.0,1.37530951]
[1760029986400,0.00139409,120370.0,120360.0,1.70554951]
[1760029986627,0.00139409,120370.0,120360.0,1.00515761]
[1760029986849,0.00139409,120370.0,120360.0,1.33539761]
[1760029987073,0.00139409,120370.0,120360.0,0.80350162]
[1760029987287,0.00139409,120370.0,120360.0,1.13374162]
[1760029987943,0.00139409,120370.0,120360.0,1.67539761]
[1760029988360,0.00139409,120370.0,120360.0,1.70033496]
[1760029988828,0.00139409,120370.0,120360.0,1.15867897]
[1760029989059,0.00139409,120370.0,120360.0,1.70033496]
[1760029989906,0.00139409,120370.0,120360.0,1.69933496]
[1760029990539,0.16754844,120370.0,120360.0,0.31045941]
[1760029990763,0.16754844,120370.0,120360.0,0.62850757]
[1760029990991,0.16754844,120370.0,120360.0,0.69877022]
[1760029992286,0.16754844,120370.0,120360.0,0.53260206]
[1760029992549,0.16754844,120370.0,120360.0,0.60357022]
[1760029993644,0.00139409,120370.0,120360.0,0.3707354]
[1760029993914,0.00139409,120370.0,120360.0,1.00759139]
[1760029994162,0.16754844,120370.0,120360.0,1.25135139]
[1760029994381,0.00139409,120370.0,120360.0,0.4659354]
[1760029994624,0.00139409,120370.0,120360.0,0.7096954]
[1760029995926,0.00139409,120370.0,120360.0,1.25131139]
[1760029996399,0.00139409,120370.0,120360.0,1.27624814]
[1760029997559,0.00139409,120370.0,120360.0,1.03252814]
[1760029997781,0.00139409,120370.0,120360.0,1.27624814]
[1760029999616,0.00139409,120370.0,120360.0,1.03252814]
[1760029999810,0.00139409,120370.0,120360.0,1.27620814]
[1760030000016,0.00139409,120370.0,120360.0,0.49087215]
[1760030000652,0.00139409,120370.0,120360.0,0.73455215]
[1760030000868,0.00139409,120370.0,120360.0,0.49087215]
[1760030001139,0.00139409,120370.0,120360.0,0.73455215]
[1760030001285,0.16754844,120370.0,120360.0,0.39567215]
[1760030001489,0.16754844,120370.0,120360.0,0.38470697]
[1760030001699,0.00139409,120370.0,120360.0,0.62834697]
[1760030001899,0.16754844,120370.0,120360.0,0.62834697]
[1760030002130,0.16754844,120370.0,120360.0,0.60341022]
[1760030002669,0.00139409,120370.0,120360.0,0.60341022]
[1760030002877,0.16754844,120370.0,120360.0,0.60341022]
[1760030003512,0.15754844,120370.0,120360.0,0.60341022]
[1760030003754,0.17757682,120380.0,120360.0,0.60341022]
[1760030004001,0.17757682,120380.0,120370.0,0.08312206]
[1760030004623,0.00072113,120380.0,120370.0,0.24927641]
[1760030004825,0.16686168,120380.0,120370.0,0.35754641]
[1760030006230,0.00072113,120380.0,120370.0,0.60114641]
[1760030006562,0.16686168,120380.0,120370.0,0.60114641]
[1760030007538,0.16686168,120380.0,120370.0,0.49287641]
[1760030007782,0.16686168,120380.0,120370.0,0.55465641]
[1760030008432,0.16686168,120380.0,120370.0,0.60114641]
[1760030008657,0.16686168,120380.0,120370.0,0.35754641]
[1760030008871,0.00072113,120380.0,120370.0,0.60110641]
[1760030009103,0.00072113,120380.0,120370.0,0.60106641]
[1760030009350,0.16686168,120380.0,120370.0,0.60106641]
[1760030009590,1.16686168,120380.0,120370.0,0.60106641]
[1760030009807,1.16686168,120380.0,120370.0,1.13089854]
[1760030009808,1.00072113,120380.0,120370.0,1.13089854]
[1760030010458,1.00072113,120380.0,120370.0,1.19414464]
[1760030010892,1.16686168,120380.0,120370.0,1.02799029]
[1760030011121,1.16686168,120380.0,120370.0,0.14636816]
[1760030011349,1.16686168,120380.0,120370.0,0.38988816]
[1760030011555,1.16686168,120380.0,120370.0,0.14636816]
[1760030011771,1.16686168,120380.0,120370.0,0.38988816]
[1760030012220,1.16686168,120380.0,120370.0,0.38984816]
[1760030012441,1.16686168,120380.0,120370.0,0.14636816]
[1760030013320,1.16686168,120380.0,120370.0,0.08312206]
[1760030015487,1.41030168,120380.0,120370.0,0.08312206]
[1760030015920,1.41030168,120380.0,120370.0,0.08292214]
[1760030016788,0.16616816,120360.0,120350.0,0.00139159]
[1760030017025,0.40956816,120360.0,120350.0,0.0846653]
[1760030017243,0.16616816,120360.0,120350.0,0.0846653]
[1760030017479,0.40956816,120360.0,120350.0,0.39078766]
[1760030017689,0.16616816,120360.0,120350.0,0.39078766]
[1760030017916,0.40956816,120360.0,120350.0,0.0846653]
[1760030018813,0.16616816,120360.0,120350.0,0.0846653]
[1760030019057,0.40956816,120360.0,120350.0,0.0846653]
[1760030020640,0.40952816,120360.0,120350.0,0.0846653]
[1760030021106,0.16616816,120360.0,120350.0,0.0846653]
[1760030021333,0.40952816,120360.0,120350.0,0.0846653]
[1760030022658,0.16616816,120360.0,120350.0,0.0846653]
[1760030022880,0.1662234,120320.0,120310.0,0.0472]
[1760030023113,0.1662234,120320.0,120310.0,0.08362769]
[1760030023570,0.1662234,120320.0,120310.0,0.08571367]
[1760030024223,0.4095434,120320.0,120310.0,0.08571367]
[1760030026370,0.1662234,120320.0,120310.0,0.08571367]
[1760030027001,0.4095434,120320.0,120310.0,0.08571367]
[1760030029007,0.1662234,120320.0,120310.0,0.08571367]
[1760030029222,0.4095034,120320.0,120310.0,0.08571367]
[1760030029855,0.1662234,120320.0,120310.0,0.08571367]
[1760030030289,0.4095034,120320.0,120310.0,0.08571367]
[1760030031249,0.4095034,120320.0,120310.0,0.08571367]
[1760030031461,0.1662234,120320.0,120310.0,0.08571367]
[1760030031679,0.4095034,120320.0,120310.0,0.08571367]
[1760030032178,0.1662234,120320.0,120310.0,0.08571367]
[1760030032432,0.4095034,120320.0,120310.0,0.08571367]
[1760030033177,0.67500424,120330.0,120310.0,0.08571367]
[1760030033381,1.1662234,120320.0,120310.0,0.08362769]
[1760030033585,1.4094634,120320.0,120310.0,0.08362769]
[1760030034002,1.1662234,120320.0,120310.0,0.08362769]
[1760030034215,1.0,120320.0,120310.0,0.88814011]
[1760030034435,1.0,120320.0,120310.0,1.2530904]
[1760030034867,0.9,120320.0,120310.0,1.2832423]
[1760030035080,0.9,120320.0,120310.0,1.4963304]
[1760030035299,0.9,120320.0,120310.0,1.2530904]
[1760030035505,0.9,120320.0,120310.0,0.8182052]
[1760030035719,0.9,120320.0,120310.0,0.8202052]
[1760030035930,1.0662234,120320.0,120310.0,1.2540904]
[1760030036141,0.9,120320.0,120310.0,1.4973304]
[1760030036365,0.9,120320.0,120310.0,1.2530904]
[1760030036573,0.9,120320.0,120310.0,1.4973304]
[1760030036787,0.9,120320.0,120310.0,1.4972904]
[1760030036997,0.9,120320.0,120310.0,1.2540904]
[1760030037211,0.9,120320.0,120310.0,1.4972904]
[1760030037458,0.9,120320.0,120310.0,1.4982904]
[1760030037639,0.9,120320.0,120310.0,1.2540904]
[1760030037846,0.9,120320.0,120310.0,1.4972904]
[1760030038051,0.9,120320.0,120310.0,1.2540904]
[1760030038313,0.9,120320.0,120310.0,1.4972904]
[1760030039324,1.0662234,120320.0,120310.0,1.08785318]
[1760030039543,1.0662234,120320.0,120310.0,1.08993916]
[1760030039783,1.0909734,120320.0,120310.0,0.11166396]
[1760030039994,1.0909734,120320.0,120310.0,0.32987367]
[1760030040427,1.1404734,120320.0,120310.0,0.08671367]
[1760030040644,1.1404734,120320.0,120310.0,0.08571367]
[1760030040856,1.0909734,120320.0,120310.0,0.19819367]